bitfinex/quotes_SOLUSD_20250830
["timestamp","ask_amount","ask_price","bid_price","bid_amount"]
[1756524005921,0.06,205.69,205.68,28.70367091]
[1756524006125,0.06,205.69,205.68,67.60367091]
[1756524007407,0.06,205.69,205.68,62.99414496]
[1756524007604,0.06,205.69,205.68,67.60367091]
[1756524009418,0.06,205.69,205.68,0.83216157]
[1756524009721,0.06,205.69,205.68,39.04216157]
[1756524009925,0.06,205.69,205.68,43.904083]
[1756524010224,0.06,205.69,205.68,44.574083]
[1756524010525,0.06,205.69,205.68,49.883609]
[1756524011105,0.06,205.69,205.68,49.213609]
[1756524011306,0.06,205.69,205.68,5.309526]
[1756524012124,0.06,205.69,205.68,10.313609]
[1756524016708,0.06,205.69,205.68,15.59313495]
[1756524017221,0.06,205.69,205.68,29.18872896]
[1756524017408,0.06,205.69,205.68,24.57920301]
[1756524017606,0.06,205.69,205.68,29.18872896]
[1756524020035,0.06,205.72,205.71,39.59559401]
[1756524020222,0.06,205.72,205.71,83.22728153]
[1756524020416,0.06,205.72,205.71,88.75849391]
[1756524020832,0.7,205.8,205.72,13.73775558]
[1756524021004,3.63791577,205.79,205.77,4.60952595]
[1756524021327,4.60952595,205.8,205.78,0.14216157]
[1756524021642,4.33619113,205.79,205.78,0.14216157]
[1756524021929,3.63619113,205.79,205.78,0.14216157]
[1756524022435,4.33619113,205.79,205.78,4.75168757]
[1756524022731,13.80503969,205.79,205.69,5.53150566]
[1756524022909,4.60952595,205.75,205.7,43.48952595]
[1756524023108,4.33619113,205.74,205.7,43.48952595]
[1756524023331,0.7,205.74,205.71,5.00148457]
[1756524023512,0.7,205.74,205.71,4.859323]
[1756524024022,39.502326,205.82,205.71,4.859323]
[1756524024023,8.94544729,205.73,205.71,4.859323]
[1756524024225,4.33592134,205.72,205.71,4.859323]
[1756524024430,4.33641671,205.72,205.71,4.859323]
[1756524024625,4.33641671,205.72,205.71,5.00148457]
[1756524024825,4.33644592,205.72,205.71,4.859323]
[1756524025044,3.63644592,205.72,205.71,4.859323]
[1756524025337,3.63644592,205.72,205.71,5.00148457]
[1756524025707,5.30952595,205.74,205.71,5.00148457]
[1756524026043,4.33642183,205.73,205.72,0.14216157]
[1756524026335,8.94594778,205.73,205.72,0.14216157]
[1756524026632,4.33642183,205.73,205.72,0.14216157]
[1756524026844,3.63642183,205.73,205.72,0.14216157]
[1756524027732,13.80668758,205.73,205.72,0.14216157]
[1756524027929,9.19716163,205.73,205.72,0.14216157]
[1756524028135,13.80668758,205.73,205.67,43.63168752]
[1756524028352,8.24594778,205.72,205.67,43.63168752]
[1756524028537,3.63642183,205.71,205.69,0.14216157]
[1756524028717,5.30952595,205.73,205.69,14.75385557]
[1756524028918,3.63791788,205.72,205.69,14.75385557]
[1756524029146,3.63791788,205.71,205.69,14.75385557]
[1756524029347,5.30952595,205.73,205.69,14.75385557]
[1756524029529,3.63856298,205.72,205.69,14.75385557]
[1756524029728,3.63856298,205.71,205.69,15.42385557]
[1756524029958,4.60952595,205.74,205.69,24.2250601]
[1756524030121,3.63856361,205.73,205.71,0.14216157]
[1756524030321,3.63856361,205.72,205.71,0.14216157]
[1756524030518,0.7,205.78,205.71,0.14216157]
[1756524030821,3.63845794,205.77,205.71,0.14216157]
[1756524031040,3.63845606,205.76,205.73,0.14216157]
[1756524031245,3.63845606,205.75,205.73,39.74216157]
[1756524031449,0.7,205.78,205.73,39.74216157]
[1756524031626,3.63835798,205.77,205.75,4.75168752]
[1756524031810,3.63835798,205.76,205.75,0.14216157]
[1756524034220,3.63835798,205.76,205.75,0.86216157]
[1756524034637,3.6376405,205.76,205.75,0.86216157]
[1756524036935,3.6376405,205.76,205.75,0.14216157]
[1756524038264,3.6376405,205.76,205.74,0.14216157]
[1756524038565,0.06,205.77,205.76,0.14216157]
[1756524038766,3.69671694,205.77,205.76,0.14216157]
[1756524039461,4.40671694,205.77,205.76,4.75168657]
[1756524039673,9.01624289,205.77,205.76,0.14216157]
[1756524040040,4.40671694,205.77,205.76,0.14216157]
[1756524040361,3.69671694,205.77,205.76,0.14216157]
[1756524040550,4.40671694,205.77,205.76,0.14216157]
[1756524040740,3.69671694,205.77,205.76,0.14216157]
[1756524041160,0.06,205.77,205.76,0.14216157]
[1756524042145,0.06,205.77,205.76,0.86216157]
[1756524042373,0.06,205.77,205.76,0.14216157]
[1756524045038,0.77,205.77,205.76,0.14216157]
[1756524045241,0.77,205.77,205.75,4.609526]
[1756524045438,5.37952595,205.77,205.75,4.609526]
[1756524045958,0.77,205.77,205.76,0.14216157]
[1756524046166,5.37952595,205.77,205.75,4.609526]
[1756524046470,3.63531592,205.76,205.71,5.35952595]
[1756524046674,0.06,205.77,205.73,4.859409]
[1756524046873,4.66952595,205.77,205.72,4.60952595]
[1756524047041,0.71,205.76,205.73,0.14216157]
[1756524047236,4.60952595,205.76,205.73,0.14216157]
[1756524047443,4.60952595,205.74,205.71,0.03]
[1756524047941,5.31952595,205.73,205.71,5.641186]
[1756524048137,0.71,205.73,205.71,0.03]
[1756524048352,0.71,205.73,205.71,0.17216157]
[1756524048665,0.06,205.77,205.73,0.14216157]
[1756524048962,0.77,205.77,205.73,4.75168752]
[1756524049571,0.77,205.77,205.73,0.14216157]
[1756524049749,0.77,205.77,205.73,4.75168752]
[1756524050248,0.77,205.77,205.73,0.14216157]
[1756524050249,0.71,205.76,205.73,0.14216157]
[1756524050647,0.71,205.76,205.71,4.89117524]
[1756524050648,4.60952595,205.74,205.71,0.03]
[1756524050850,4.60952595,205.73,205.71,0.03]
[1756524051164,5.31952595,205.73,205.71,0.03]
[1756524051549,4.86057456,205.74,205.71,0.03]
[1756524051749,0.71,205.72,205.71,0.03]
[1756524052557,5.31952595,205.72,205.71,0.03]
[1756524052953,0.71,205.72,205.71,0.03]
[1756524053151,5.31952595,205.72,205.71,0.03]
[1756524053355,10.18050203,205.72,205.71,0.03]
[1756524053955,5.57097608,205.72,205.71,0.03]
[1756524054160,10.18050203,205.72,205.71,0.03]
[1756524054754,5.57097608,205.72,205.71,0.03]
[1756524054956,10.18050203,205.72,205.71,0.03]
[1756524056465,5.57097608,205.72,205.71,0.03]
[1756524056664,10.18050203,205.72,205.71,0.03]
[1756524057966,5.57097608,205.72,205.71,0.03]
[1756524058191,10.18050203,205.72,205.71,0.03]
[1756524058569,5.57097608,205.72,205.71,0.03]
[1756524058774,10.18050203,205.72,205.71,0.03]
[1756524059081,5.57097608,205.72,205.71,0.03]
[1756524060072,13.59559401,205.71,205.68,0.03]
[1756524060280,18.20511996,205.69,205.58,0.03]
[1756524060494,4.60952595,205.6,205.58,0.03]
[1756524060961,0.7,205.6,205.58,0.03]
[1756524061279,5.30952595,205.6,205.58,0.03]
[1756524061855,5.30952595,205.59,205.58,0.03]
[1756524062086,10.17357575,205.59,205.58,0.03]
[1756524062391,5.5640498,205.59,205.58,0.03]
[1756524062564,4.60952595,205.6,205.58,0.03]
[1756524063692,4.60952595,205.59,205.58,0.03]
[1756524063991,44.40952595,205.59,205.58,0.03]
[1756524064289,43.70952595,205.59,205.58,0.03]
[1756524064877,39.8,205.63,205.58,0.03]
[1756524065083,44.40952595,205.63,205.58,0.03]
[1756524065288,0.7,205.62,205.58,0.03]
[1756524065778,4.609526,205.65,205.58,0.17216157]
[1756524065990,131.6,205.64,205.6,4.60952595]
[1756524066371,1.949366,205.68,205.61,0.71]
[1756524066571,34.46,205.72,205.67,4.60952595]
[1756524066798,34.46,205.72,205.69,4.60952595]
[1756524066972,34.46,205.72,205.68,0.14216157]
[1756524067173,5.30952595,205.71,205.68,0.14216157]
[1756524067694,9.47108049,205.7,205.66,0.14216157]
[1756524067896,4.60952595,205.69,205.64,4.60952595]
[1756524068225,4.60952595,205.67,205.63,0.14216157]
[1756524068385,0.7,205.68,205.63,0.14216157]
[1756524068695,4.60952595,205.68,205.63,4.75168752]
[1756524068903,4.60952595,205.69,205.64,4.60952595]
[1756524069082,5.30952595,205.68,205.63,4.75168752]
[1756524069278,0.7,205.67,205.63,4.75168752]
[1756524069598,4.60952595,205.68,205.63,4.75168752]
[1756524069806,4.60952595,205.7,205.65,4.75168752]
[1756524069986,5.30952595,205.73,205.68,0.14216157]
[1756524070180,0.7,205.73,205.68,0.14216157]
[1756524070392,0.7,205.72,205.68,0.14216157]
[1756524070796,4.60952595,205.73,205.68,5.46168752]
[1756524071109,5.30952595,205.72,205.68,0.14216157]
[1756524071317,9.47079431,205.71,205.68,0.14216157]
[1756524071509,4.86126836,205.71,205.68,0.14216157]
[1756524072386,9.47079431,205.71,205.68,0.14216157]
[1756524072989,4.60952595,205.69,205.64,5.31952595]
[1756524073222,4.60952595,205.68,205.63,4.60952595]
[1756524073414,5.30952595,205.67,205.62,4.60952595]
[1756524073590,5.30952595,205.67,205.62,5.31952595]
[1756524073917,4.60952595,205.68,205.63,0.71]
[1756524074100,5.30952595,205.68,205.63,5.31952595]
[1756524074285,9.47136825,205.69,205.64,5.46168752]
[1756524074485,10.17136825,205.69,205.64,5.46168752]
[1756524075820,4.60952595,205.67,205.64,0.14216157]
[1756524076179,5.30952595,205.67,205.64,0.14216157]
[1756524076623,4.8618423,205.69,205.65,0.71]
[1756524076778,4.8618423,205.69,205.65,5.46168752]
[1756524076981,4.8618423,205.69,205.66,0.71]
[1756524077402,9.53096083,205.71,205.66,0.71]
[1756524077602,10.23096083,205.71,205.66,0.71]
[1756524078111,5.30952595,205.7,205.65,4.75168752]
[1756524078411,4.60952595,205.68,205.65,0.14216157]
[1756524078608,4.60952595,205.67,205.65,0.14216157]
[1756524078782,131.6,205.7,205.64,0.14216157]
[1756524078986,136.20952595,205.7,205.66,0.14216157]
[1756524079184,131.6,205.7,205.66,5.46168752]
[1756524079397,131.6,205.7,205.68,0.14216157]
[1756524081514,131.6,205.7,205.67,0.14216157]
[1756524081715,0.06,205.71,205.69,4.75168752]
[1756524081901,0.06,205.71,205.65,4.60952595]
[1756524081902,0.7,205.7,205.65,4.60952595]
[1756524082096,9.53082933,205.71,205.66,0.85216157]
[1756524082318,4.60952595,205.7,205.66,0.85216157]
[1756524082818,10.23082933,205.71,205.66,0.85216157]
[1756524085204,4.60952595,205.7,205.66,0.85216157]
[1756524085729,5.62130338,205.71,205.66,0.85216157]
[1756524085906,0.06,205.71,205.66,4.75168752]
[1756524086227,0.06,205.71,205.68,0.14216157]
[1756524086520,0.06,205.71,205.7,0.14216157]
[1756524089107,0.06,205.71,205.63,26.0]
[1756524089318,0.7,205.7,205.67,0.14216157]
[1756524089513,5.30952595,205.7,205.65,4.60952595]
[1756524089710,5.30952595,205.7,205.65,5.31952595]
[1756524090101,5.30952595,205.7,205.66,0.14216157]
[1756524090303,0.7,205.7,205.66,0.85216157]
[1756524090529,4.66952595,205.71,205.66,0.85216157]
[1756524090742,5.36952595,205.71,205.66,0.14216157]
[1756524090927,0.06,205.71,205.7,0.14216157]
[1756524091439,0.06,205.71,205.7,0.83216157]
[1756524093428,0.06,205.71,205.7,0.14216157]
[1756524095035,0.06,205.71,205.7,10.30313623]
[1756524097456,0.06,205.71,205.7,5.69361028]
[1756524097818,0.06,205.71,205.7,10.30313623]
[1756524102336,0.06,205.71,205.7,5.69361028]
[1756524102519,0.06,205.71,205.7,10.30313623]
[1756524106825,0.06,205.71,205.7,28.50825619]
[1756524107548,0.06,205.71,205.7,33.28694461]
[1756524107950,0.06,205.74,205.73,39.73775558]
[1756524108160,0.06,205.74,205.73,44.34728153]
[1756524108360,0.06,205.74,205.73,45.03728153]
[1756524108737,1e-08,205.74,205.73,45.03728153]
[1756524108963,1e-08,205.74,205.73,49.89802133]
[1756524109253,0.06,205.77,205.73,49.89802133]
[1756524109254,0.06,205.77,205.74,0.14216157]
[1756524109458,0.06,205.77,205.76,18.34728153]
[1756524109828,0.06,205.77,205.76,19.03728153]
[1756524110452,0.06,205.77,205.76,23.89731263]
[1756524111037,0.06,205.77,205.76,62.83731263]
[1756524111233,0.06,205.77,205.76,23.89731263]
[1756524111560,0.06,205.77,205.76,62.79731263]
[1756524113748,0.06,205.77,205.76,43.46952595]
[1756524113957,0.76,205.77,205.71,4.86121238]
[1756524114243,0.76,205.77,205.76,4.60952595]
[1756524114458,0.06,205.77,205.76,4.60952595]
[1756524114854,0.06,205.77,205.76,4.75168752]
[1756524115052,0.76,205.77,205.76,4.75168752]
[1756524116642,0.06,205.77,205.76,4.75168752]
[1756524117871,0.76,205.77,205.76,4.75168752]
[1756524118971,0.06,205.77,205.76,5.44168752]
[1756524119144,0.06,205.77,205.76,10.30171862]
[1756524119769,0.06,205.77,205.76,9.61171862]
[1756524120444,0.06,205.77,205.76,4.75168752]
[1756524121771,0.06,205.77,205.76,43.61168752]
[1756524122153,0.06,205.77,205.76,49.14171862]
[1756524123258,0.06,205.8,205.79,26.0]
[1756524123573,0.06,205.8,205.79,74.60121347]
[1756524123774,0.06,205.8,205.79,75.27121347]
[1756524124152,0.06,205.8,205.79,66.05216157]
[1756524124352,0.06,205.8,205.79,88.86680748]
[1756524125274,0.06,205.8,205.79,93.72613009]
[1756524125449,0.622326,205.82,205.8,13.73775558]
[1756524125785,0.622326,205.82,205.81,43.97168752]
[1756524125944,0.622326,205.82,205.81,44.64168752]
[1756524127163,0.622326,205.82,205.81,49.50053791]
[1756524127958,0.622326,205.82,205.81,49.48053791]
[1756524128873,0.622326,205.82,205.81,49.44053791]
[1756524130576,0.682326,205.82,205.81,49.44053791]
[1756524131464,0.682326,205.82,205.81,51.38734191]
[1756524131778,0.682326,205.82,205.81,43.74952595]
[1756524132166,0.682326,205.82,205.81,44.56168752]
[1756524133756,0.682326,205.82,205.81,49.42053791]
[1756524134173,0.682326,205.82,205.81,51.36734191]
[1756524134758,0.682326,205.82,205.81,64.96293592]
[1756524136259,0.06,205.85,205.84,13.73775558]
[1756524136465,0.72,205.95,205.88,0.14216157]
[1756524136761,0.622326,205.98,205.87,26.0]
[1756524136762,0.622326,205.98,205.94,4.60952595]
[1756524136958,0.622326,205.98,205.96,4.60952595]
[1756524136959,0.72,205.97,205.96,4.60952595]
[1756524137280,0.622326,205.98,205.97,0.14216157]
[1756524137480,0.622326,205.98,205.97,43.79168752]
[1756524137663,0.622326,205.98,205.97,51.78564952]
[1756524137978,7.32396199,206.0,205.97,56.39517547]
[1756524138180,7.32396199,206.0,205.99,27.81141207]
[1756524138361,0.129,206.02,206.01,4.75168752]
[1756524138562,0.129,206.02,206.01,43.77168752]
[1756524138764,0.129,206.02,206.01,58.03728153]
[1756524139082,0.72,206.12,206.1,0.14216157]
[1756524139386,0.622326,206.14,206.12,13.73775558]
[1756524139685,0.622326,206.14,206.13,84.01728153]
[1756524140078,0.622326,206.14,206.13,45.01728153]
[1756524140389,0.622326,206.14,206.13,40.40775558]
[1756524140569,0.622326,206.14,206.13,83.99728153]
[1756524141280,0.622326,206.14,206.13,79.36775558]
[1756524141281,0.480226,206.14,206.13,79.36775558]
[1756524141460,0.19322269,206.21,206.17,13.59559401]
[1756524141656,0.19322269,206.21,206.2,4.60952595]
[1756524141857,0.19322269,206.21,206.2,43.79168752]
[1756524142081,0.19322269,206.21,206.2,48.40121352]
[1756524142282,0.19322269,206.21,206.2,62.66680753]
[1756524142990,0.19322269,206.21,206.2,23.62680753]
[1756524143166,5.56785777,206.28,206.21,0.14216157]
[1756524143362,0.72,206.28,206.23,4.75168752]
[1756524143684,0.72,206.27,206.25,0.14216157]
[1756524143990,0.72,206.27,206.26,39.16216157]
[1756524144487,10.17759052,206.27,206.23,39.0]
[1756524144687,10.17759052,206.27,206.23,38.5]
[1756524144688,0.22,206.26,206.23,38.5]
[1756524144871,4.60952595,206.24,206.23,38.5]
[1756524145071,4.84806457,206.27,206.14,26.0]
[1756524145293,4.60952595,206.22,206.16,4.60952595]
[1756524145472,4.60952595,206.19,206.18,4.848064]
[1756524145678,20.88196566,206.27,206.16,39.02]
[1756524145866,4.60952595,206.2,206.16,39.02]
[1756524146065,20.88196566,206.27,206.16,39.02]
[1756524146285,4.60952595,206.21,206.17,0.14216157]
[1756524146491,8.76192882,206.27,206.19,4.75168752]
[1756524146672,5.30773228,206.29,206.23,0.14216157]
[1756524146879,4.60952595,206.27,206.24,39.06]
[1756524147079,5.06952595,206.27,206.24,39.06]
[1756524147275,7.32322818,206.28,206.25,0.14216157]
[1756524147479,0.46,206.28,206.25,0.14216157]
[1756524147668,7.32322818,206.27,206.25,0.14216157]
[1756524147976,6.82322818,206.27,206.25,39.20216157]
[1756524148381,7.32322818,206.26,206.25,0.14216157]
[1756524148591,7.32322818,206.27,206.25,0.14216157]
[1756524148789,7.78322818,206.27,206.25,0.14216157]
[1756524149372,12.17127807,206.27,206.25,0.14216157]
[1756524149773,0.46,206.29,206.25,0.14216157]
[1756524149774,5.30771976,206.29,206.25,0.14216157]
[1756524149992,7.32322818,206.27,206.25,0.14216157]
[1756524150189,7.32322818,206.27,206.23,0.14216157]
[1756524150481,0.06,206.27,206.25,0.14216157]
[1756524151694,0.52,206.27,206.22,5.307733]
[1756524151874,0.06,206.27,206.25,0.14216157]
[1756524152296,0.06,206.27,206.26,7.46538975]
[1756524152480,0.06,206.27,206.26,8.16538975]
[1756524152794,0.06,206.27,206.26,25.67484876]
[1756524153535,1.12464691,206.46,206.3,26.0]
[1756524153802,1.81464691,206.46,206.37,0.14216157]
[1756524154013,1.12464691,206.46,206.39,0.14216157]
[1756524154311,1.12464691,206.46,206.45,7.32322818]
[1756524154621,1.12464691,206.46,206.45,0.14216157]
[1756524154783,1.12464691,206.46,206.45,7.46538975]
[1756524154988,0.98254691,206.46,206.45,0.14216157]
[1756524155186,0.19322269,206.49,206.46,0.14216157]
[1756524155386,0.19322269,206.49,206.41,0.84216157]
[1756524155585,0.69,206.48,206.46,0.14216157]
[1756524155909,40.0,206.5,206.48,0.14216157]
[1756524156205,40.0,206.5,206.45,44.96]
[1756524156502,40.0,206.5,206.49,7.46538975]
[1756524156674,40.0,206.5,206.49,21.76098376]
[1756524157278,40.0,206.5,206.49,14.43775558]
[1756524157599,40.0,206.5,206.49,26.60383329]
[1756524157799,20.684421,206.6,206.49,26.60383329]
[1756524157800,20.684421,206.6,206.5,39.73775558]
[1756524157978,20.684421,206.6,206.59,7.46538975]
[1756524158401,20.684421,206.6,206.59,8.16538975]
[1756524159216,20.684421,206.6,206.59,59.71775558]
[1756524159419,20.684421,206.6,206.59,46.12216157]
[1756524159723,20.684421,206.6,206.59,59.71775558]
[1756524159937,20.684421,206.6,206.59,0.14216157]
[1756524160108,26.21481211,206.6,206.51,0.7]
[1756524160314,21.374421,206.6,206.51,0.7]
[1756524160513,26.21475125,206.6,206.55,7.32322818]
[1756524160725,0.69,206.59,206.55,7.32322818]
[1756524160920,0.69,206.58,206.51,7.32322818]
[1756524161118,0.69,206.57,206.47,46.36]
[1756524161306,7.32322818,206.52,206.46,7.32322818]
[1756524161498,7.32322818,206.52,206.4,1.941229]
[1756524161499,7.32322818,206.47,206.4,1.941229]
[1756524161698,4.84261501,206.5,206.4,1.941229]
[1756524161699,0.69,206.46,206.4,1.941229]
[1756524161907,26.0,206.49,206.4,1.941229]
[1756524161908,7.32322818,206.43,206.4,1.941229]
[1756524162138,7.32322818,206.41,206.4,1.941229]
[1756524162309,45.96,206.49,206.39,7.32322818]
[1756524162611,4.84229752,206.52,206.45,7.32322818]
[1756524163015,7.32322818,206.48,206.43,0.14216157]
[1756524163428,4.84392852,206.45,206.37,46.02]
[1756524163730,4.84392852,206.45,206.38,7.32322818]
[1756524163928,7.32322818,206.44,206.38,7.32322818]
[1756524164115,6.82322818,206.44,206.39,7.32322818]
[1756524164436,4.84294645,206.49,206.42,7.32322818]
[1756524164627,7.32322818,206.48,206.42,7.32322818]
[1756524164820,7.32322818,206.48,206.43,0.14216157]
[1756524165228,0.51,206.5,206.44,7.32322818]
[1756524165412,5.35265922,206.5,206.43,0.7]
[1756524165725,38.10453063,206.54,206.42,12.104531]
[1756524165726,7.32322818,206.49,206.42,12.104531]
[1756524165901,7.32322818,206.46,206.41,0.14216157]
[1756524166107,7.32322818,206.46,206.41,7.46538975]
[1756524166335,7.32322818,206.46,206.41,14.559926]
[1756524166541,7.32322818,206.42,206.35,0.7]
[1756524166711,26.0,206.45,206.32,0.7]
[1756524166909,7.32322818,206.37,206.32,0.7]
[1756524167128,46.26,206.47,206.31,7.32322818]
[1756524167129,7.32322818,206.36,206.31,7.32322818]
[1756524167329,46.26,206.47,206.35,14.564167]
[1756524167330,46.28,206.47,206.35,14.564167]
[1756524167635,46.28,206.47,206.28,46.26]
[1756524167636,4.84480693,206.41,206.28,46.26]
[1756524167802,7.32322818,206.36,206.31,8.02322818]
[1756524168010,7.32322818,206.34,206.33,14.564167]
[1756524168210,7.32322818,206.34,206.25,7.32322818]
[1756524168438,26.0,206.38,206.28,7.32322818]
[1756524168625,16.95662321,206.41,206.3,7.32322818]
[1756524168833,4.84480693,206.41,206.31,0.7]
[1756524169031,7.32322818,206.37,206.32,7.32322818]
[1756524169354,10.89920874,206.37,206.32,10.89920874]
[1756524169530,4.84683986,206.32,206.26,10.89920874]
[1756524169711,4.84472651,206.41,206.27,10.89920874]
[1756524169918,4.84472651,206.41,206.25,14.564167]
[1756524169919,10.89920874,206.4,206.34,10.89920874]
[1756524170232,10.89920874,206.41,206.36,0.03]
[1756524170435,10.89920874,206.4,206.36,0.03]
[1756524170612,10.89920874,206.39,206.36,0.03]
[1756524171026,26.0,206.43,206.36,0.03]
[1756524171027,10.89920874,206.37,206.36,0.03]
[1756524171232,26.0,206.42,206.36,0.03]
[1756524171529,15.24487429,206.37,206.36,0.03]
[1756524172039,15.74487429,206.37,206.36,0.03]
[1756524172224,10.89920874,206.28,206.23,10.89920874]
[1756524172424,10.89920874,206.36,206.13,47.06789057]
[1756524172425,26.0,206.33,206.19,0.7]
[1756524172614,10.89920874,206.26,206.2,25.46337574]
[1756524172818,46.92,206.32,206.2,10.89920874]
[1756524173012,46.92,206.32,206.21,10.89920874]
[1756524173213,16.95982943,206.37,206.25,10.89920874]
[1756524173432,10.89920874,206.29,206.23,10.89920874]
[1756524173625,10.89920874,206.28,206.22,11.59920874]
[1756524173944,10.89920874,206.24,206.2,14.574073]
[1756524174138,4.84756283,206.29,206.2,0.7]
[1756524174343,10.89920874,206.31,206.26,10.89920874]
[1756524174548,4.84485771,206.41,206.3,10.89920874]
[1756524174839,20.06,206.46,206.27,0.7]
[1756524174840,0.06,206.46,206.32,13.73775558]
[1756524175029,0.06,206.46,206.34,0.14216157]
[1756524175030,10.89920874,206.43,206.34,0.14216157]
[1756524175233,0.06,206.46,206.38,11.04137031]
[1756524175537,10.89920874,206.43,206.38,0.14216157]
[1756524175752,4.90365923,206.46,206.38,0.14216157]
[1756524175753,0.06,206.46,206.41,10.89920874]
[1756524176039,0.06,206.46,206.43,0.14216157]
[1756524176216,0.06,206.46,206.43,0.7]
[1756524176420,0.06,206.46,206.43,11.59920874]
[1756524176619,0.06,206.46,206.44,10.89920874]
[1756524176936,0.06,206.46,206.43,11.59920874]
[1756524177251,0.06,206.46,206.41,0.7]
[1756524177550,26.0,206.52,206.42,11.74137031]
[1756524177551,10.45920874,206.48,206.42,11.74137031]
[1756524177724,12.10395293,206.55,206.43,0.7]
[1756524177931,20.684421,206.6,206.45,26.0]
[1756524178133,20.684421,206.6,206.5,11.04137031]
[1756524178456,20.684421,206.6,206.54,0.14216157]
[1756524178663,20.684421,206.6,206.56,0.14216157]
[1756524178815,20.684421,206.6,206.57,0.7]
[1756524179016,20.684421,206.6,206.53,26.0]
[1756524179017,20.684421,206.6,206.59,10.89920874]
[1756524179217,20.684421,206.6,206.59,11.74137031]
[1756524179860,19.244421,206.6,206.59,39.88347732]
[1756524180215,19.244421,206.6,206.59,28.98426858]
[1756524180524,19.244421,206.6,206.59,39.88347732]
[1756524180936,19.244421,206.6,206.59,28.98426858]
[1756524181335,19.244421,206.6,206.59,39.88347732]
[1756524183241,19.244421,206.6,206.59,15.38867457]
[1756524183476,19.244421,206.6,206.59,14.68867457]
[1756524183639,19.244421,206.6,206.59,26.23788331]
[1756524183840,19.244421,206.6,206.59,39.83347732]
[1756524184764,19.244421,206.6,206.59,65.83347732]
[1756524185061,19.244421,206.6,206.59,39.83347732]
[1756524186167,19.244421,206.6,206.59,28.93426858]
[1756524186346,18.244421,206.6,206.59,39.83347732]
[1756524186742,18.244421,206.6,206.59,28.93426858]
[1756524186947,18.244421,206.6,206.59,26.23788331]
[1756524187458,18.244421,206.6,206.59,25.44572174]
[1756524187664,18.944421,206.6,206.58,10.89920874]
[1756524187966,0.7,206.59,206.57,25.44854274]
[1756524188156,18.244421,206.6,206.58,10.89920874]
[1756524188358,18.244421,206.6,206.59,10.89920874]
[1756524188583,18.944421,206.6,206.56,10.89920874]
[1756524188784,0.7,206.59,206.55,10.89920874]
[1756524189085,0.7,206.58,206.54,10.89920874]
[1756524189260,0.7,206.57,206.48,5.49304786]
[1756524189464,0.7,206.57,206.53,25.45065974]
[1756524189677,0.7,206.56,206.48,0.65]
[1756524189858,19.004421,206.6,206.55,10.89920874]
[1756524190188,19.004421,206.6,206.58,10.89920874]
[1756524190482,0.7,206.59,206.58,10.89920874]
[1756524190663,0.7,206.59,206.56,0.03]
[1756524190876,0.7,206.59,206.58,10.89920874]
[1756524191044,18.304421,206.6,206.58,11.54920874]
[1756524191248,18.304421,206.6,206.59,24.63696432]
[1756524191468,18.304421,206.6,206.59,25.28696432]
[1756524191883,18.304421,206.6,206.59,30.12746966]
[1756524191884,1e-08,206.6,206.59,30.12746966]
[1756524192089,0.0418775,206.71,206.67,13.59559401]
[1756524192373,0.622326,206.79,206.71,13.73775558]
[1756524192585,0.622326,206.79,206.78,0.14216157]
[1756524192790,1.322326,206.79,206.72,0.14216157]
[1756524192951,1.322326,206.79,206.78,10.89920874]
[1756524193352,1.322326,206.79,206.7,26.0]
[1756524193651,0.2,206.78,206.76,10.89920874]
[1756524193880,0.622326,206.79,206.77,10.89920874]
[1756524194177,0.622326,206.79,206.71,0.14216157]
[1756524194385,0.622326,206.79,206.77,10.89920874]
[1756524194856,0.622326,206.79,206.71,0.14216157]
[1756524195171,5.45820487,206.79,206.71,0.14216157]
[1756524195375,16.35741361,206.79,206.67,2.52945664]
[1756524195562,10.89920874,206.78,206.72,10.89920874]
[1756524195765,11.59920874,206.78,206.72,10.89920874]
[1756524195967,0.7,206.77,206.72,10.89920874]
[1756524196169,0.7,206.77,206.76,10.89920874]
[1756524196385,0.622326,206.79,206.69,0.14216157]
[1756524196568,0.622326,206.79,206.69,0.52]